bitfinex-derivatives/quotes_SOLF0:USTF0_20251216
["timestamp","ask_amount","ask_price","bid_price","bid_amount"]
[1765863353246,122.32521683,126.19,126.17,0.05077018]
[1765863354253,7.1349,126.16,126.13,67.42]
[1765863354447,9.78961683,126.16,126.13,70.65]
[1765863355462,7.1354,126.15,126.13,67.48093651]
[1765863355956,2.65471683,126.14,126.13,0.06093651]
[1765863357552,2.65539227,126.14,126.13,0.06093651]
[1765863358253,4.23539227,126.14,126.13,0.06093651]
[1765863358450,121.26366215,126.14,126.09,67.42]
[1765863358642,111.011,126.13,126.09,70.65]
[1765863358842,2.65539227,126.13,126.09,70.65]
[1765863359054,7.137,126.12,126.09,70.65]
[1765863359656,7.137,126.12,126.09,70.70810718]
[1765863359657,7.18872505,126.12,126.09,70.70810718]
[1765863360550,7.18872505,126.12,126.1,3.23]
[1765863361656,0.05172505,126.12,126.1,3.23]
[1765863362951,0.05172505,126.12,126.1,5.88539227]
[1765863363158,2.65539227,126.2,126.11,3.31]
[1765863363358,2.65539227,126.2,126.15,3.31]
[1765863363760,7.1336,126.18,126.15,3.31]
[1765863363952,2.65539227,126.2,126.15,3.31]
[1765863364153,0.06087079,126.19,126.16,6.02402018]
[1765863364345,0.06087079,126.19,126.17,3.31]
[1765863366849,7.19387079,126.19,126.17,3.31]
[1765863370160,7.1339,126.18,126.16,3.36862791]
[1765863371962,0.06087079,126.19,126.16,6.02402018]
[1765863372160,0.06087079,126.19,126.17,3.31]
[1765863378272,7.19397079,126.19,126.17,3.31]
[1765863381064,0.00087079,126.19,126.17,3.31]
[1765863393280,0.00087079,126.19,126.18,5.92539227]
[1765863393480,2.65539227,126.26,126.19,3.27]
[1765863393687,2.65539227,126.26,126.21,3.27]
[1765863393878,110.8846,126.28,126.23,3.27]
[1765863393879,2.65539227,126.28,126.23,3.27]
[1765863394576,0.05691152,126.27,126.24,3.32284272]
[1765863394776,7.18581152,126.27,126.24,3.32284272]
[1765863396088,7.1293,126.26,126.24,0.00284272]
[1765863396392,110.9148,126.24,126.17,3.27]
[1765863396591,2.65539227,126.22,126.17,3.27]
[1765863396989,110.9091,126.25,126.17,3.27]
[1765863397288,0.05566403,126.22,126.2,0.05392232]
[1765863397586,7.18736403,126.22,126.2,0.05392232]
[1765863403792,7.18736403,126.22,126.2,3.32392232]
[1765863404395,0.05566403,126.22,126.2,3.32392232]
[1765863412194,7.18696403,126.22,126.2,3.32392232]
[1765863414713,7.18696403,126.22,126.2,0.05392232]
[1765863414909,7.18696403,126.22,126.2,3.32392232]
[1765863416998,0.05566403,126.22,126.2,3.32392232]
[1765863420708,4.14219468,126.29,126.21,3.27]
[1765863420912,5.95932781,126.28,126.21,3.27]
[1765863421113,115.01059468,126.3,126.21,3.27]
[1765863421311,5.95883344,126.29,126.23,3.27]
[1765863421613,110.8605,126.3,126.23,3.27]
[1765863421817,0.05233731,126.27,126.25,3.32281002]
[1765863425531,7.18083731,126.27,126.25,3.32281002]
[1765863425827,7.18083731,126.27,126.25,0.05281002]
[1765863426622,7.18083731,126.27,126.25,3.39281002]
[1765863429821,7.18083731,126.27,126.25,0.05281002]
[1765863430225,11.32071441,126.27,126.25,0.05281002]
[1765863430722,7.18083731,126.27,126.25,0.05281002]
[1765863433135,7.1316,126.22,126.19,3.34]
[1765863433826,7.1318,126.21,126.19,3.34]
[1765863434130,7.18362562,126.21,126.19,3.3980312]
[1765863451742,0.05182562,126.21,126.19,3.3980312]
[1765863452345,0.05182562,126.21,126.2,3.18]
[1765863459758,7.18372562,126.21,126.19,3.2380312]
[1765863463140,7.18372562,126.21,126.19,0.0580312]
[1765863463344,11.32360272,126.21,126.19,0.0580312]
[1765863463545,7.18372562,126.21,126.19,0.0580312]
[1765863465455,4.1398771,126.2,126.19,0.0580312]
[1765863465951,4.1398771,126.2,126.16,39.4]
[1765863465952,110.9578,126.19,126.16,39.4]
[1765863466847,110.9578,126.19,126.16,39.45042027]
[1765863467052,7.134,126.17,126.16,39.45042027]
[1765863469856,7.134,126.17,126.16,42.63042027]
[1765863470445,7.134,126.17,126.16,0.05042027]
[1765863470756,4.1398771,126.17,126.11,3.18]
[1765863471060,110.9843,126.16,126.11,3.18]
[1765863471856,7.1359,126.14,126.13,3.18]
[1765863472460,0.05931537,126.15,126.13,3.18]
[1765863472954,7.19471537,126.15,126.13,3.18]
[1765863480161,0.05931537,126.15,126.13,3.18]
[1765863480865,0.05931537,126.15,126.13,5.83453853]
[1765863481054,0.05931537,126.15,126.14,3.18]
[1765863488959,7.1339,126.18,126.14,3.18]
[1765863490069,0.05915514,126.17,126.16,3.21]
[1765863490767,451.0178358,126.25,126.16,3.21]
[1765863490768,2.65453853,126.23,126.16,3.21]
[1765863490973,2.65453853,126.27,126.2,3.21]
[1765863491158,7.1302,126.24,126.2,2.65453853]
[1765863491458,7.1302,126.24,126.2,5.86453853]
[1765863491662,7.1302,126.24,126.21,3.21]
[1765863491858,7.18765969,126.24,126.21,3.27019599]
[1765863492069,7.1307,126.23,126.21,0.06019599]
[1765863492267,9.78523853,126.23,126.21,0.06019599]
[1765863493966,7.1307,126.23,126.21,3.27019599]
[1765863495067,7.1307,126.23,126.21,0.06019599]
[1765863495464,9.78523853,126.23,126.21,0.06019599]
[1765863496266,9.78194073,126.23,126.21,3.27019599]
[1765863498270,9.78194073,126.23,126.21,0.06019599]
[1765863499480,9.78194073,126.23,126.21,3.27019599]
[1765863499774,7.1307,126.23,126.21,3.27019599]
[1765863500970,2.65124073,126.22,126.21,0.06019599]
[1765863501674,7.1307,126.23,126.21,3.27019599]
[1765863503377,2.70870042,126.24,126.21,3.27019599]
[1765863503378,0.05745969,126.24,126.21,3.27019599]
[1765863504871,0.05745969,126.24,126.22,3.21]
[1765863509983,0.05745969,126.24,126.23,3.21]
[1765863511980,2.65124073,126.28,126.24,3.21]
[1765863512978,0.05399672,126.27,126.26,3.4]
[1765863515074,0.05399672,126.27,126.25,3.45561507]
[1765863515389,7.18249672,126.27,126.25,0.05561507]
[1765863515888,2.65124073,126.26,126.25,0.05561507]
[1765863532799,7.18249672,126.27,126.25,0.05561507]
[1765863533005,2.65124073,126.26,126.25,0.05561507]
[1765863533495,7.18249672,126.27,126.25,0.05561507]
[1765863536702,7.18249672,126.27,126.25,3.45561507]
[1765863537198,0.05399672,126.27,126.25,3.45561507]
[1765863538202,7.18239672,126.27,126.25,3.45561507]
[1765863540605,7.18239672,126.27,126.25,0.05561507]
[1765863544305,5.93604047,126.26,126.25,0.05561507]
[1765863549711,7.18239672,126.27,126.25,0.05561507]
[1765863550404,7.18239672,126.27,126.25,3.45561507]
[1765863551904,7.18239672,126.27,126.25,0.05561507]
[1765863552411,5.92431195,126.26,126.25,0.05561507]
[1765863555712,7.18239672,126.27,126.25,0.05561507]
[1765863556107,5.92444129,126.26,126.25,0.05561507]
[1765863557611,7.18239672,126.27,126.25,0.05561507]
[1765863557908,5.92495414,126.26,126.25,0.05561507]
[1765863562207,5.92495414,126.26,126.25,3.45561507]
[1765863562915,7.18239672,126.27,126.25,3.45561507]
[1765863563217,0.05399672,126.27,126.25,3.45561507]
[1765863564115,7.18249672,126.27,126.25,3.45561507]
[1765863566820,0.05399672,126.27,126.25,3.45561507]
[1765863569824,7.18249672,126.27,126.25,3.45561507]
[1765863570020,7.18249672,126.27,126.25,0.05561507]
[1765863570519,7.18249672,126.27,126.25,3.45561507]
[1765863570919,7.18249672,126.27,126.25,0.05561507]
[1765863571511,7.18249672,126.27,126.25,3.45561507]
[1765863574824,7.18249672,126.27,126.25,0.05561507]
[1765863581829,5.92022825,126.26,126.25,0.05561507]
[1765863584633,13.04912825,126.26,126.25,0.05561507]
[1765863589835,13.0493901,126.26,126.25,0.05561507]
[1765863590034,7.1289,126.26,126.25,0.05561507]
[1765863590236,13.0493901,126.26,126.25,0.05561507]
[1765863593342,7.1289,126.26,126.25,0.05561507]
[1765863593543,13.04959018,126.26,126.25,0.05561507]
[1765863594042,7.1289,126.26,126.25,0.05561507]
[1765863594742,13.04256667,126.26,126.25,0.05561507]
[1765863596043,7.1289,126.26,126.25,0.05561507]
[1765863597641,13.04254452,126.26,126.25,0.05561507]
[1765863598443,7.1289,126.26,126.25,0.05561507]
[1765863598636,13.04256009,126.26,126.25,0.05561507]
[1765863598836,7.1289,126.26,126.25,0.05561507]
[1765863599044,13.04256009,126.26,126.25,0.05561507]
[1765863599342,7.1289,126.26,126.25,0.05561507]
[1765863599844,13.04274706,126.26,126.25,0.05561507]
[1765863604144,7.1306,126.23,126.21,2.64998756]
[1765863604344,7.1306,126.23,126.21,5.89998756]
[1765863604863,110.9308,126.22,126.19,3.25]
[1765863605046,113.63320756,126.22,126.19,0.06075889]
[1765863605243,2.64998756,126.2,126.19,0.06075889]
[1765863605459,8.56403905,126.2,126.19,0.06075889]
[1765863607241,110.9586,126.19,126.16,3.25]
[1765863607448,110.9586,126.19,126.15,3.25]
[1765863608344,7.134,126.17,126.16,0.05258973]
[1765863608548,7.134,126.17,126.16,3.30258973]
[1765863610346,7.134,126.17,126.16,0.05258973]
[1765863612052,7.134,126.17,126.16,3.30258973]
[1765863612848,0.05487431,126.18,126.16,5.95257729]
[1765863613058,0.05487431,126.18,126.17,3.25]
[1765863613854,0.00487431,126.18,126.17,4.83]
[1765863614059,110.9075,126.25,126.18,3.25]
[1765863614259,6.11180825,126.24,126.2,5.89998756]
[1765863614461,7.1313,126.22,126.2,5.89998756]
[1765863614957,7.18286316,126.22,126.2,5.95930667]
[1765863616663,7.18286316,126.22,126.21,3.25]
[1765863617162,7.18286316,126.22,126.2,2.70930667]
[1765863617368,7.18286316,126.22,126.2,5.95930667]
[1765863618071,7.18286316,126.22,126.21,3.25]
[1765863620569,0.05156316,126.22,126.21,3.25]
[1765863620770,110.8845,126.28,126.21,3.25]
[1765863621071,6.11411216,126.27,126.25,2.64998756]
[1765863621265,110.8845,126.28,126.25,2.64998756]
[1765863621471,7.1292,126.26,126.25,5.89998756]
[1765863621669,0.05853935,126.27,126.26,3.25]
[1765863624775,7.18713935,126.27,126.25,5.89998756]
[1765863626174,7.18713935,126.27,126.26,3.25]
[1765863627776,0.05853935,126.27,126.26,3.25]
[1765863629375,7.1276,126.29,126.26,3.25]
[1765863629571,7.1276,126.29,126.28,5.89998756]
[1765863630174,7.1276,126.29,126.23,3.25]
[1765863630476,7.1276,126.29,126.27,5.89998756]
[1765863630678,7.17779739,126.29,126.27,5.89998756]
[1765863631078,7.17779739,126.29,126.28,3.25]
[1765863631380,0.05019739,126.29,126.26,3.25]
[1765863632982,7.1286,126.27,126.26,3.25]
[1765863633478,0.05019739,126.29,126.26,3.25]
[1765863633672,0.05019739,126.29,126.28,5.83998756]
[1765863634169,7.1253,126.33,126.29,3.19]
[1765863634372,7.1253,126.33,126.32,5.83998756]
[1765863634572,7.1241,126.35,126.33,3.19]
[1765863634780,7.1241,126.35,126.34,5.83998756]
[1765863635580,7.1241,126.35,126.34,3.19]
[1765863635781,7.1241,126.35,126.34,5.83511497]
[1765863637079,7.1241,126.35,126.33,2.69912788]
[1765863637380,7.1241,126.35,126.33,5.88912788]
[1765863638580,7.1241,126.35,126.34,3.19]
[1765863640376,7.123,126.37,126.34,3.19]
[1765863640577,7.123,126.37,126.36,3.19]
[1765863641780,7.1209,126.41,126.36,3.19]
[1765863641975,7.1209,126.41,126.34,0.05691324]
[1765863641976,110.7264,126.46,126.4,3.19]
[1765863642179,110.7295,126.45,126.42,5.89561925]
[1765863642380,117.8569,126.44,126.42,0.05069183]
[1765863644274,120.50201497,126.44,126.42,0.05069183]
[1765863648181,7.1192,126.44,126.42,3.24069183]
[1765863649181,9.76431497,126.44,126.42,0.05069183]
[1765863653687,7.1192,126.44,126.42,0.05069183]
[1765863653889,2.64511497,126.43,126.42,0.05069183]
[1765863654099,110.7575,126.42,126.37,3.19]
[1765863654297,2.64511497,126.4,126.37,3.19]
[1765863654597,7.1214,126.4,126.37,3.19]
[1765863654789,2.64511497,126.42,126.37,3.19]
[1765863655091,0.05980991,126.41,126.39,3.19]
[1765863656786,7.18040991,126.41,126.39,3.19]
[1765863657786,0.05980991,126.41,126.39,3.19]
[1765863659402,7.12,126.42,126.39,3.19]
[1765863660191,7.1192,126.44,126.39,3.19]
[1765863660399,7.1192,126.44,126.41,3.19]
[1765863660595,110.73,126.45,126.41,3.19]
[1765863661292,110.7264,126.46,126.41,3.19]
[1765863661490,110.7166,126.47,126.41,3.19]
[1765863661689,110.7166,126.47,126.44,3.19]
[1765863662203,7.1178,126.46,126.44,3.19]
[1765863663893,7.117,126.48,126.44,3.19]
[1765863664296,114.81130374,126.51,126.44,3.19]
[1765863664594,7.117,126.48,126.47,3.14]
[1765863665893,132.2841358,126.53,126.47,3.14]
[1765863665894,7.1158,126.5,126.47,3.14]
[1765863666112,114.80700374,126.51,126.47,3.20090716]
[1765863666295,110.6858,126.5,126.47,3.20090716]
[1765863668005,7.1162,126.49,126.47,3.20090716]
[1765863669807,7.1162,126.49,126.47,0.06090716]
[1765863670003,11.24640374,126.49,126.47,0.06090716]
[1765863670504,110.7148,126.47,126.43,3.14]
[1765863671305,0.05668085,126.46,126.44,0.05962658]
[1765863671699,0.05668085,126.46,126.44,3.19962658]
[1765863672008,7.1187,126.45,126.44,3.19962658]
[1765863673500,0.05668085,126.46,126.44,3.19962658]
[1765863676703,7.17458085,126.46,126.44,3.19962658]
[1765863677316,7.17458085,126.46,126.44,0.05962658]
[1765863680311,11.30478459,126.46,126.44,0.05962658]
[1765863680612,6.0527485,126.45,126.44,0.05962658]
[1765863681908,116.7871485,126.45,126.4,70.4]
[1765863682213,0.05668085,126.46,126.41,3.14]
[1765863682518,0.05668085,126.46,126.42,3.14]
[1765863683016,0.05668085,126.46,126.44,3.14]
[1765863692326,7.1165,126.49,126.44,3.14]
[1765863692713,114.79610374,126.53,126.44,3.14]
[1765863692925,6.03798966,126.52,126.44,3.14]
[1765863693120,114.79610374,126.53,126.44,3.14]
[1765863693320,114.79610374,126.53,126.43,4.13020374]
[1765863693321,0.05241227,126.5,126.48,3.25]
[1765863693914,7.16791227,126.5,126.48,3.25]
[1765863698727,0.00241227,126.5,126.48,3.25]
[1765863701923,110.6312,126.57,126.49,4.13020374]
[1765863702130,110.6417,126.55,126.5,3.25]
[1765863702831,110.6518,126.54,126.5,3.25]
[1765863703031,0.0211594,126.53,126.51,3.309358]
[1765863703527,7.1145,126.52,126.51,0.059358]
[1765863712146,7.1145,126.52,126.51,3.309358]
[1765863712443,7.1145,126.52,126.51,0.059358]
[1765863715038,0.0211594,126.53,126.51,3.309358]
[1765863716241,7.1349594,126.53,126.51,3.309358]
[1765863717048,0.0211594,126.53,126.51,3.309358]
[1765863717548,0.0211594,126.53,126.52,3.25]
[1765863718446,117.9690358,126.63,126.53,3.25]
[1765863718749,2.63702494,126.6,126.56,3.25]
[1765863719051,7.1105,126.59,126.56,3.25]
[1765863719542,7.1105,126.59,126.56,3.31018304]
[1765863719743,2.63702494,126.6,126.56,3.31018304]
[1765863719943,7.1095,126.61,126.57,3.25]
[1765863720649,2.63702494,126.6,126.56,0.06018304]
[1765863720845,2.63702494,126.59,126.56,0.06018304]
[1765863721051,2.63702494,126.61,126.56,3.31018304]
[1765863721252,7.1106,126.59,126.56,3.31018304]
[1765863721752,2.63702494,126.59,126.56,0.06018304]
[1765863722044,110.5917,126.61,126.56,0.06018304]
[1765863722045,2.63702494,126.61,126.56,3.31018304]
[1765863722548,7.1089,126.62,126.57,2.63702494]
[1765863722849,7.1089,126.62,126.58,3.20023111]
[1765863723252,2.63702494,126.64,126.58,3.20023111]
[1765863723453,110.575,126.63,126.58,3.20023111]
[1765863723657,2.63702494,126.62,126.58,3.20023111]
[1765863724350,7.1099,126.6,126.58,3.20023111]
[1765863724551,9.74692494,126.6,126.58,0.06023111]
[1765863731955,9.74692494,126.6,126.58,3.20023111]
[1765863732153,9.74692494,126.6,126.58,0.06023111]
[1765863734059,7.1099,126.6,126.58,0.06023111]
[1765863734255,9.74692494,126.6,126.58,0.06023111]
[1765863734461,7.1099,126.6,126.58,0.06023111]
[1765863734661,9.74692494,126.6,126.58,0.06023111]
[1765863736358,7.1099,126.6,126.58,0.06023111]
[1765863736560,9.74692494,126.6,126.58,0.06023111]
[1765863741658,9.74692494,126.6,126.58,3.20023111]
[1765863744155,7.109,126.62,126.58,3.20023111]
[1765863744467,2.63702494,126.64,126.58,3.20023111]
[1765863744663,2.63702494,126.64,126.6,3.14]
[1765863744866,2.63702494,126.65,126.61,3.19947553]
[1765863745867,7.1078,126.64,126.61,3.19947553]
[1765863747666,7.1082,126.63,126.61,3.19947553]
[1765863750677,7.1082,126.63,126.61,0.05947553]
[1765863752381,9.74522494,126.63,126.61,0.05947553]
[1765863753176,9.74522494,126.63,126.61,3.13947553]
[1765863753472,9.74522494,126.63,126.61,0.05947553]
[1765863756172,7.1082,126.63,126.61,0.05947553]
[1765863759182,7.1082,126.63,126.61,3.13947553]
[1765863759373,7.1082,126.63,126.61,0.05947553]
[1765863763681,9.74522494,126.63,126.61,0.05947553]
[1765863766388,6.02444394,126.62,126.61,0.05947553]
[1765863766588,9.74522494,126.63,126.61,0.05947553]
[1765863771295,6.02503139,126.62,126.61,0.05947553]
[1765863772494,116.61073139,126.62,126.56,3.08]
[1765863772696,2.63702494,126.6,126.56,3.08]
[1765863773594,0.05778361,126.59,126.57,3.1306045]
[1765863773795,2.63702494,126.58,126.57,0.0506045]
[1765863773995,2.63671917,126.58,126.57,0.0506045]
[1765863776305,8.65789607,126.58,126.57,0.0506045]
[1765863776714,8.65789607,126.58,126.53,67.2]
[1765863776715,110.6252,126.57,126.53,67.2]
[1765863776913,2.63671917,126.55,126.51,3.08]
[1765863777712,0.05877739,126.54,126.52,3.13557204]
[1765863778715,7.17217739,126.54,126.52,3.13557204]
[1765863779512,7.17217739,126.54,126.52,0.05557204]
[1765863779816,11.29422118,126.54,126.52,0.05557204]
[1765863781007,7.17217739,126.54,126.52,0.05557204]
[1765863781216,7.17217739,126.54,126.52,3.13557204]
[1765863781510,7.17217739,126.54,126.52,0.05557204]
[1765863782109,7.17217739,126.54,126.52,3.13557204]
[1765863782615,7.17217739,126.54,126.52,0.05557204]
[1765863787117,7.17217739,126.54,126.52,3.19557204]
[1765863787325,0.05877739,126.54,126.52,3.19557204]
[1765863796428,7.1137,126.53,126.52,3.19557204]
[1765863800727,7.1137,126.53,126.52,0.05557204]
[1765863800922,7.1137,126.53,126.52,3.19557204]
[1765863803522,7.1137,126.53,126.52,0.05557204]
[1765863808418,7.1137,126.53,126.52,3.19557204]
[1765863813539,7.1137,126.53,126.52,0.05557204]
[1765863813734,7.1137,126.53,126.52,3.41557204]
[1765863818430,7.1137,126.53,126.52,0.05557204]
[1765863819338,13.15104812,126.53,126.52,0.05557204]
[1765863819530,7.1137,126.53,126.52,0.05557204]
[1765863820536,17.2754035,126.53,126.52,0.05557204]
[1765863820733,7.1158,126.5,126.47,3.36]
[1765863821738,7.1161,126.49,126.47,0.05940387]
[1765863825233,7.1161,126.49,126.47,3.41940387]
[1765863825730,7.1161,126.49,126.47,0.05940387]
[1765863827845,7.1161,126.49,126.47,3.41940387]
[1765863828043,7.1161,126.49,126.47,0.05940387]
[1765863828443,7.1161,126.49,126.47,3.41940387]
[1765863829142,0.05446416,126.5,126.47,3.41940387]
[1765863834857,0.05446416,126.5,126.47,10.53630387]
[1765863835150,0.05446416,126.5,126.48,3.36]
[1765863836858,0.00446416,126.5,126.49,3.36]
[1765863840854,7.12006416,126.5,126.47,3.41940387]
[1765863841049,0.00446416,126.5,126.47,3.41940387]
[1765863841449,0.00446416,126.5,126.47,6.05875995]
[1765863841646,0.00446416,126.5,126.48,3.36]
[1765863842149,7.11996416,126.5,126.48,3.36]
[1765863843154,7.11996416,126.5,126.47,5.93875995]
[1765863843662,7.11996416,126.5,126.47,5.93888014]
[1765863843851,7.1162,126.49,126.47,0.05940387]
[1765863844159,7.1162,126.49,126.47,3.29940387]
[1765863845258,7.1162,126.49,126.47,0.05940387]
[1765863846454,7.1162,126.49,126.47,3.29940387]
[1765863846653,0.00446416,126.5,126.47,3.29940387]
[1765863846958,0.00446416,126.5,126.48,5.87947627]
[1765863847152,0.00446416,126.5,126.49,3.24]
[1765863859468,0.00446416,126.5,126.47,3.29940387]
[1765863860378,9.75557627,126.49,126.47,0.05940387]
[1765863865874,7.1179,126.46,126.43,3.24]
[1765863866474,7.1183,126.45,126.43,3.24]
[1765863867069,7.17235904,126.45,126.43,3.2958371]
[1765863867977,7.17235904,126.45,126.43,0.0558371]
[1765863872089,7.17235904,126.45,126.43,3.2958371]
[1765863872281,7.17235904,126.45,126.43,0.0558371]
[1765863873086,9.81183531,126.45,126.43,0.0558371]
[1765863878185,7.17235904,126.45,126.43,0.0558371]
[1765863889094,7.17235904,126.45,126.43,3.1658371]
[1765863890901,0.05405904,126.45,126.43,3.1658371]
[1765863899412,0.05405904,126.45,126.44,5.74947627]
[1765863900799,110.6665,126.53,126.45,3.11]
[1765863900998,113.30597627,126.53,126.47,3.11]
[1765863901409,7.1154,126.51,126.47,3.11]
[1765863901914,0.05729267,126.5,126.48,3.16861936]
[1765863905704,110.6255,126.57,126.5,3.16]
[1765863906014,114.74909519,126.57,126.5,3.16]
[1765863906214,7.1133,126.54,126.5,3.16]
[1765863906714,0.05890743,126.53,126.51,3.21881761]
[1765863907303,7.17310743,126.53,126.51,0.05881761]
[1765863907619,12.87670262,126.53,126.51,0.05881761]
[1765863909805,7.17310743,126.53,126.51,0.05881761]
[1765863912806,11.29767594,126.53,126.51,0.05881761]
[1765863915215,7.17310743,126.53,126.51,0.05881761]
[1765863916221,7.1159,126.5,126.47,3.16]
[1765863917433,7.17190886,126.5,126.47,3.21847094]
[1765863918612,0.05600886,126.5,126.47,3.21847094]
[1765863920620,7.1142,126.53,126.48,3.16]
[1765863921723,7.16431508,126.52,126.5,3.16]
[1765863925225,7.1154,126.5,126.49,0.05589849]
[1765863928226,7.16461508,126.52,126.49,3.21589849]
[1765863928719,0.04991508,126.52,126.49,3.21589849]
[1765863930728,7.16431508,126.52,126.49,3.21589849]
[1765863930922,0.04991508,126.52,126.49,3.21589849]
[1765863936531,7.3493569,126.62,126.54,3.35]
[1765863936742,4.12456851,126.62,126.54,3.35]
[1765863937229,7.1094,126.61,126.55,7.1124]
[1765863937540,7.1094,126.61,126.58,3.35]
[1765863938036,7.1101,126.6,126.58,3.35]
[1765863938840,7.1101,126.6,126.57,0.05282692]
[1765863939539,7.1101,126.6,126.57,3.40282692]
[1765863939839,123.24998781,126.66,126.57,3.40282692]
[1765863940064,116.54126751,126.65,126.6,3.40220917]
[1765863940353,110.5569,126.65,126.6,3.40220917]
[1765863940960,110.5717,126.63,126.6,3.40220917]
[1765863941260,110.5717,126.63,126.6,0.05220917]
[1765863941763,11.23366851,126.62,126.6,0.05220917]
[1765863942658,11.23366851,126.62,126.5,67.2]
[1765863942659,110.6126,126.59,126.54,3.35]
[1765863942949,110.6016,126.6,126.54,3.35]
[1765863943663,7.1111,126.58,126.54,3.35]
[1765863943963,0.0518227,126.58,126.56,3.40189872]
[1765863944159,0.06024548,126.58,126.56,3.40233867]
[1765863944356,110.5699,126.64,126.56,3.40233867]
[1765863944553,110.5699,126.64,126.56,3.35]
[1765863944949,7.1094,126.61,126.56,3.35]
[1765863945149,110.5805,126.62,126.56,3.35]
[1765863945353,110.5805,126.62,126.58,3.40279781]
[1765863945850,7.11,126.6,126.58,3.40279781]
[1765863946353,7.1087,126.62,126.58,3.40279781]
[1765863950966,7.1095,126.61,126.58,3.40279781]
[1765863952763,7.11,126.6,126.58,3.40279781]
[1765863952963,7.11,126.6,126.58,0.05279781]
[1765863953753,7.11,126.6,126.58,3.40279781]
[1765863953966,7.11,126.6,126.58,0.05279781]
[1765863954357,7.11,126.6,126.58,3.40279781]
[1765863956468,7.11,126.6,126.58,0.05279781]
[1765863958865,110.6197,126.58,126.52,3.35]
[1765863959871,7.16684937,126.56,126.54,3.40747142]
[1765863962462,7.16684937,126.56,126.54,0.05747142]
[1765863963371,2.63653476,126.55,126.54,0.05747142]
[1765863966978,110.6538,126.54,126.5,67.2]
[1765863967166,2.63653476,126.52,126.48,3.21]
[1765863967966,0.05552356,126.51,126.49,3.21]
[1765863968166,2.63653476,126.55,126.49,3.21]
[1765863968367,0.05748736,126.51,126.49,3.26683647]
[1765863973378,2.69402212,126.51,126.49,3.26683647]
[1765863974083,9.80902212,126.51,126.49,0.05683647]
[1765863981876,110.6945,126.49,126.44,3.21]
[1765863982071,2.64134611,126.5,126.44,3.21]
[1765863983085,0.05334424,126.48,126.47,3.21]
[1765863991985,0.05334424,126.48,126.46,3.26049077]
[1765863992186,9.81149035,126.48,126.46,0.05049077]
[1765863995692,2.69469035,126.48,126.47,3.22]
[1765863995885,0.05334424,126.48,126.46,3.27049077]
[1765864000499,9.81139035,126.48,126.46,0.05049077]
[1765864000689,9.81139035,126.48,126.46,3.27049077]
[1765864001593,9.81139035,126.48,126.46,0.05049077]
[1765864002487,9.81139035,126.48,126.46,3.27049077]
[1765864003095,9.81139035,126.48,126.46,0.05049077]
[1765864004694,6.00054597,126.47,126.42,3.22]
[1765864004895,2.64134611,126.46,126.42,3.22]
[1765864005793,2.64134611,126.46,126.4,9.76194611]
[1765864005794,0.06074154,126.45,126.43,3.27138287]
[1765864023009,7.17914154,126.45,126.43,3.27138287]
[1765864029724,0.06074154,126.45,126.43,3.27138287]
[1765864029916,110.6792,126.51,126.43,3.27138287]
[1765864030115,6.01726819,126.5,126.43,3.22]
[1765864030417,110.6792,126.51,126.43,3.22]
[1765864030617,6.01837046,126.5,126.43,3.22]
[1765864030808,110.6792,126.51,126.43,3.22]
[1765864031004,7.17509032,126.48,126.47,3.39]
[1765864031821,7.17509032,126.48,126.46,3.44306158]
[1765864036622,0.05849032,126.48,126.46,3.44306158]
[1765864039716,110.6453,126.55,126.47,3.39]
[1765864040112,114.76715532,126.56,126.49,3.39]
[1765864040320,110.6316,126.57,126.49,3.39]
[1765864040717,0.05695072,126.54,126.52,3.44538787]
[1765864043829,0.05695072,126.54,126.52,10.55948787]
[1765864044025,7.1106,126.59,126.53,3.39]
[1765864045015,0.04997548,126.57,126.56,3.39]
[1765864045925,0.04997548,126.57,126.55,3.43998867]
[1765864047625,7.16157548,126.57,126.55,0.04998867]
[1765864047820,7.16157548,126.57,126.55,3.43998867]
[1765864049035,7.16157548,126.57,126.55,0.04998867]
[1765864052831,7.1138,126.53,126.49,3.3]
[1765864053937,0.05572067,126.52,126.5,0.05634192]
[1765864054138,0.05572067,126.52,126.5,3.35634192]
[1765864058240,7.17032067,126.52,126.5,3.35634192]
[1765864059939,0.05572067,126.52,126.5,3.35634192]